bitfinex/quotes_SOLUSD_20250922
["timestamp","ask_amount","ask_price","bid_price","bid_amount"]
[1758565772964,1.80647095,220.82,220.79,14.25559401]
[1758565773169,1.80647095,220.82,220.81,13.59559401]
[1758565773370,27.80647095,220.82,220.81,13.59559401]
[1758565773959,13.61377714,220.87,220.81,14.25559401]
[1758565774168,1.80647095,220.84,220.82,0.66]
[1758565774372,1.80647095,220.83,220.82,14.25559401]
[1758565774581,1.80647095,220.83,220.82,13.59559401]
[1758565775763,6.33484118,220.83,220.82,13.59559401]
[1758565779087,4.52816518,220.84,220.83,13.59559401]
[1758565780085,5.19816518,220.84,220.79,13.59559401]
[1758565780387,1.80647095,220.8,220.79,13.59559401]
[1758565781460,6.33545645,220.8,220.79,13.59559401]
[1758565781767,134.2,220.79,220.75,13.59559401]
[1758565781966,134.2,220.79,220.75,0.66]
[1758565781967,1.80647095,220.76,220.75,0.66]
[1758565782767,1.80647095,220.76,220.75,28.18700202]
[1758565782988,1.80647095,220.77,220.75,14.25559401]
[1758565783283,1.80647095,220.77,220.76,0.66]
[1758565792388,1.80647095,220.77,220.75,27.48285002]
[1758565792587,1.80647095,220.77,220.75,28.14285002]
[1758565792977,1.80647095,220.77,220.75,27.48285002]
[1758565793595,40.21932778,220.81,220.76,0.66]
[1758565793774,1.80647095,220.77,220.76,0.66]
[1758565794778,26.0,220.83,220.77,13.59559401]
[1758565794979,139.72681921,220.82,220.79,13.59559401]
[1758565795188,3.37070529,220.81,220.79,14.25559401]
[1758565795501,134.2,220.82,220.79,14.25559401]
[1758565795502,136.00647095,220.82,220.79,14.25559401]
[1758565796600,136.00647095,220.82,220.79,13.59559401]
[1758565796803,136.00647095,220.82,220.8,0.66]
[1758565797688,1.80647095,220.81,220.8,14.25559401]
[1758565799301,1.80647095,220.81,220.8,13.59559401]
[1758565800484,6.99525134,220.81,220.75,13.88725601]
[1758565800705,1.80647095,220.77,220.76,48.61559401]
[1758565801005,1.80647095,220.77,220.76,49.27559401]
[1758565801206,1.80647095,220.77,220.76,13.59559401]
[1758565801714,1.80647095,220.77,220.76,14.25559401]
[1758565801889,1.80647095,220.78,220.76,14.25559401]
[1758565802083,134.2,220.8,220.67,0.66]
[1758565802084,168.18869803,220.77,220.67,0.66]
[1758565802280,26.0,220.73,220.67,0.66]
[1758565802485,1.80647095,220.68,220.67,14.25559401]
[1758565803691,37.98611889,220.73,220.67,14.25559401]
[1758565803990,1.80647095,220.68,220.67,27.68047314]
[1758565804305,2.15099483,220.72,220.67,27.68047314]
[1758565804306,26.0,220.72,220.68,13.59559401]
[1758565804505,26.0,220.68,220.6,0.1]
[1758565804726,1.80647095,220.64,220.62,13.59559401]
[1758565804886,1.80647095,220.64,220.63,0.66]
[1758565805210,1.80647095,220.64,220.62,13.59559401]
[1758565805393,1.80647095,220.63,220.62,13.59559401]
[1758565805600,26.0,220.67,220.62,14.25559401]
[1758565805801,1.80647095,220.63,220.61,13.59559401]
[1758565806002,1.80647095,220.63,220.62,0.66]
[1758565806304,1.80647095,220.63,220.6,0.1]
[1758565806504,1.80647095,220.63,220.61,14.25559401]
[1758565806712,4.5322102,220.65,220.62,13.59559401]
[1758565807017,1.80647095,220.63,220.62,14.25559401]
[1758565810203,1.80647095,220.64,220.62,14.25559401]
[1758565810425,1.80647095,220.65,220.63,14.25559401]
[1758565810721,1.80647095,220.65,220.64,0.66]
[1758565811590,1.80647095,220.65,220.63,48.81559401]
[1758565811826,1.80647095,220.7,220.64,16.06206496]
[1758565812125,0.66,220.76,220.66,15.40206496]
[1758565812329,4.52995898,220.76,220.68,13.59559401]
[1758565812641,1.80647095,220.73,220.7,13.59559401]
[1758565812807,1.80647095,220.75,220.71,35.91]
[1758565813002,0.65,220.8,220.72,14.26559401]
[1758565813222,3.95135384,220.79,220.74,13.59559401]
[1758565813415,1.80647095,220.76,220.73,13.59559401]
[1758565814603,1.80647095,220.75,220.73,0.67]
[1758565815032,1.80647095,220.75,220.72,13.59559401]
[1758565815239,1.80647095,220.75,220.72,14.26559401]
[1758565816049,1.80647095,220.73,220.68,48.83559401]
[1758565816330,1.80647095,220.71,220.7,13.59559401]
[1758565816538,4.52981159,220.76,220.7,14.26559401]
[1758565816539,1.80647095,220.72,220.7,14.26559401]
[1758565816709,1.80647095,220.72,220.71,0.67]
[1758565816910,1.80647095,220.73,220.72,13.59559401]
[1758565817533,26.0,220.76,220.72,0.67]
[1758565817720,27.80647095,220.76,220.74,13.59559401]
[1758565818031,1.80647095,220.75,220.74,13.59559401]
[1758565818730,1.80647095,220.75,220.72,13.59559401]
[1758565818911,1.80647095,220.75,220.74,0.67]
[1758565819106,1.80647095,220.75,220.72,14.26559401]
[1758565819524,4.953694,220.91,220.74,13.59559401]
[1758565819525,134.2,220.81,220.74,13.59559401]
[1758565819706,26.0,220.77,220.76,13.59559401]
[1758565819906,1.80647095,220.79,220.76,14.26559401]
[1758565820120,1.80647095,220.82,220.78,13.59559401]
[1758565820313,3.95119699,220.81,220.78,14.26559401]
[1758565820524,1.80647095,220.81,220.78,0.67]
[1758565820834,1.80647095,220.83,220.8,13.59559401]
[1758565821007,1.80647095,220.83,220.82,13.59559401]
[1758565821008,4.52837023,220.83,220.82,13.59559401]
[1758565821212,8.48021688,220.83,220.82,13.59559401]
[1758565821522,9.13021688,220.83,220.8,13.59559401]
[1758565821827,1.80647095,220.81,220.78,13.59559401]
[1758565822010,1.80647095,220.79,220.77,13.59559401]
[1758565822432,1.80647095,220.79,220.77,0.67]
[1758565822639,6.33566196,220.79,220.77,0.67]
[1758565822849,2.45647095,220.78,220.72,0.67]
[1758565823147,2.45647095,220.78,220.73,13.59559401]
[1758565823148,0.65,220.78,220.73,13.59559401]
[1758565823462,4.52919101,220.79,220.71,35.26]
[1758565823463,2.79450143,220.77,220.71,14.26559401]
[1758565823619,0.65,220.77,220.71,14.26559401]
[1758565823816,15.85216759,220.79,220.68,0.67]
[1758565823817,0.65,220.76,220.68,0.67]
[1758565824022,0.65,220.76,220.7,13.59559401]
[1758565824216,1.80647095,220.71,220.69,13.59559401]
[1758565824542,1.80647095,220.7,220.69,13.59559401]
[1758565824743,4.53124291,220.69,220.66,13.59559401]
[1758565824917,4.53001132,220.75,220.68,13.59559401]
[1758565825117,1.80647095,220.73,220.69,0.67]
[1758565825342,1.80647095,220.73,220.66,15.40206496]
[1758565825343,1.80647095,220.73,220.71,13.59559401]
[1758565825630,1.80647095,220.72,220.71,13.59559401]
[1758565825845,4.53001132,220.75,220.69,13.59559401]
[1758565826135,1.80647095,220.72,220.71,0.67]
[1758565826317,1.80647095,220.72,220.69,14.26559401]
[1758565826515,1.80647095,220.72,220.7,0.67]
[1758565827009,6.3372282,220.72,220.68,0.67]
[1758565827208,1.80647095,220.71,220.69,13.59559401]
[1758565827412,1.80647095,220.71,220.69,0.68]
[1758565829112,1.80647095,220.71,220.68,13.59559401]
[1758565829442,1.80647095,220.72,220.69,0.68]
[1758565829616,134.2,220.71,220.7,14.27559401]
[1758565830420,136.00647095,220.71,220.7,13.59559401]
[1758565833443,134.2,220.71,220.7,14.27559401]
[1758565838464,134.2,220.71,220.7,18.80663161]
[1758565839849,134.2,220.71,220.7,14.27559401]
[1758565843749,142.225436,220.71,220.7,13.59559401]
[1758565843954,144.37677999,220.71,220.7,13.59559401]
[1758565844356,21.50386077,220.71,220.63,35.9]
[1758565844539,2.82460369,220.67,220.64,13.59559401]
[1758565844739,2.82460369,220.67,220.64,14.27559401]
[1758565845256,2.82460369,220.66,220.64,14.27559401]
[1758565845452,134.87,220.7,220.64,13.59559401]
[1758565845654,2.82460369,220.68,220.64,13.59559401]
[1758565845976,2.82460369,220.68,220.64,14.27559401]
[1758565846462,7.35625729,220.67,220.62,13.59559401]
[1758565846640,7.35625729,220.67,220.65,13.59559401]
[1758565847743,2.82460369,220.67,220.66,0.68]
[1758565847952,28.82460369,220.68,220.67,13.59559401]
[1758565848154,28.82460369,220.68,220.65,13.59559401]
[1758565848560,2.82460369,220.69,220.67,13.59559401]
[1758565848773,134.2,220.7,220.69,13.59559401]
[1758565849060,2.1508508,220.7,220.69,14.27559401]
[1758565849366,7.35522552,220.73,220.69,14.27559401]
[1758565849573,2.15125049,220.72,220.7,0.68]
[1758565849769,2.82460369,220.76,220.71,13.59559401]
[1758565849976,4.97661642,220.75,220.71,14.27559401]
[1758565850180,2.15201273,220.74,220.71,14.27559401]
[1758565850347,2.15201273,220.73,220.71,14.27559401]
[1758565850676,7.35479788,220.75,220.71,14.27559401]
[1758565850881,2.82460369,220.72,220.68,13.59559401]
[1758565851179,2.82460369,220.74,220.7,13.59559401]
[1758565851348,2.1516194,220.73,220.7,13.59559401]
[1758565851545,2.82460369,220.74,220.7,14.27559401]
[1758565851756,2.15187379,220.73,220.7,14.27559401]
[1758565851978,2.82460369,220.74,220.7,14.27559401]
[1758565852270,2.82460369,220.74,220.7,13.59559401]
[1758565852271,2.15186421,220.73,220.7,13.59559401]
[1758565852455,2.82460369,220.73,220.7,13.59559401]
[1758565852971,2.82460369,220.71,220.68,13.59559401]
[1758565853166,2.82460369,220.69,220.68,13.59559401]
[1758565853488,2.82460369,220.69,220.66,0.68]
[1758565853666,2.82460369,220.68,220.67,0.68]
[1758565854168,2.82460369,220.69,220.68,13.59559401]
[1758565854739,2.82460369,220.7,220.68,14.27559401]
[1758565854941,26.0,220.72,220.67,13.59559401]
[1758565855167,4.97629983,220.71,220.7,13.59559401]
[1758565855751,2.15125101,220.71,220.7,0.68]
[1758565856566,2.82460369,220.72,220.7,0.68]
[1758565857549,2.82460369,220.72,220.67,18.12717762]
[1758565857550,7.35531339,220.72,220.67,18.12717762]
[1758565857768,4.97682011,220.71,220.67,14.29559401]
[1758565858074,2.82460369,220.71,220.67,14.29559401]
[1758565858366,2.82460369,220.71,220.68,0.7]
[1758565858945,7.35546843,220.71,220.68,0.7]
[1758565859162,2.82460369,220.71,220.7,13.59559401]
[1758565859365,4.97706759,220.71,220.7,13.59559401]
[1758565860777,9.50790138,220.71,220.68,48.79559401]
[1758565861072,7.35543748,220.71,220.68,49.49559401]
[1758565862254,2.82460369,220.71,220.7,13.59559401]
[1758565862448,4.97756015,220.71,220.7,13.59559401]
[1758565862750,2.82460369,220.71,220.7,13.59559401]
[1758565863561,7.355436,220.71,220.7,13.59559401]
[1758565863774,9.50844185,220.71,220.7,13.59559401]
[1758565864160,10.17844185,220.71,220.68,13.59559401]
[1758565864374,2.15300585,220.7,220.68,13.59559401]
[1758565864678,7.355436,220.71,220.68,13.59559401]
[1758565864876,7.355436,220.71,220.7,13.59559401]
[1758565865167,9.50827652,220.71,220.7,13.59559401]
[1758565865386,2.15284052,220.71,220.7,0.7]
[1758565865573,2.82460369,220.75,220.7,0.7]
[1758565865756,28.82460369,220.76,220.72,13.59559401]
[1758565865953,5.52323482,220.75,220.74,13.59559401]
[1758565866156,8.34783851,220.75,220.74,13.59559401]
[1758565866866,8.34783851,220.75,220.72,14.29559401]
[1758565867185,7.35461723,220.75,220.72,14.29559401]
[1758565867386,5.52966107,220.74,220.72,14.29559401]
[1758565867585,2.82460369,220.74,220.72,14.29559401]
[1758565868498,2.82460369,220.73,220.72,13.59559401]
[1758565869064,9.51178159,220.73,220.72,13.59559401]
[1758565870176,13.55490441,220.73,220.72,13.59559401]
[1758565870958,12.88490441,220.73,220.72,13.59559401]
[1758565875176,12.88504314,220.73,220.72,13.59559401]
[1758565875566,24.88109759,220.73,220.68,13.59559401]
[1758565875867,2.82460369,220.69,220.68,13.59559401]
[1758565876466,15.85647623,220.73,220.68,14.31559401]
[1758565876782,2.15669247,220.72,220.7,13.59559401]
[1758565876978,7.35471384,220.75,220.72,13.59559401]
[1758565877187,5.53102374,220.74,220.73,0.72]
[1758565877385,8.56736683,220.74,220.73,0.72]
[1758565878064,2.15715654,220.74,220.73,0.72]
[1758565879078,2.82460369,220.78,220.73,0.72]
[1758565879286,2.15764036,220.77,220.75,13.59559401]
[1758565879465,5.86109133,220.8,220.76,0.72]
[1758565879664,8.35493095,220.79,220.78,13.59559401]
[1758565879869,11.39141859,220.79,220.78,13.59559401]
[1758565880069,8.35493095,220.79,220.78,13.59559401]
[1758565880791,8.35493095,220.79,220.78,0.72]
[1758565881302,5.53032726,220.79,220.78,0.72]
[1758565881467,2.82460369,220.82,220.79,13.59559401]
[1758565881670,4.93074737,220.81,220.8,14.31559401]
[1758565881976,2.15662749,220.81,220.8,14.31559401]
[1758565882379,2.82460369,220.82,220.8,13.59559401]
[1758565882579,2.82460369,220.83,220.82,13.59559401]
[1758565882789,4.9806173,220.83,220.82,14.31559401]
[1758565883175,2.15601361,220.83,220.82,14.31559401]
[1758565883382,4.52725513,220.89,220.82,14.31559401]
[1758565883383,2.82460369,220.87,220.82,14.31559401]
[1758565883592,2.15495848,220.86,220.84,13.59559401]
[1758565883795,2.82460369,220.87,220.84,13.59559401]
[1758565883985,2.1551711,220.86,220.85,14.31559401]
[1758565884298,2.82460369,220.88,220.85,14.31559401]
[1758565884478,2.82460369,220.88,220.87,13.59559401]
[1758565884993,4.97838427,220.88,220.87,13.59559401]
[1758565885198,2.82460369,220.88,220.87,13.59559401]
[1758565885495,0.2,220.94,220.88,13.59559401]
[1758565885686,3.02460369,220.94,220.9,13.59559401]
[1758565885884,3.02460369,220.94,220.92,13.59559401]
[1758565886198,3.02460369,220.94,220.92,14.31559401]
[1758565886876,7.55076075,220.94,220.92,14.31559401]
[1758565887194,3.02460369,220.94,220.93,0.72]
[1758565891282,3.02460369,220.94,220.91,13.59559401]
[1758565891484,2.82460369,220.93,220.92,0.66]
[1758565891807,2.82460369,220.93,220.9,48.73559401]
[1758565892100,2.82460369,220.93,220.92,13.59559401]
[1758565892604,2.82460369,220.93,220.92,0.66]
[1758565896604,1.80413712,220.93,220.92,0.66]
[1758565897009,1.80413712,220.93,220.91,13.59559401]
[1758565897196,1.80413712,220.92,220.91,13.59559401]
[1758565897511,1.80413712,220.92,220.91,49.33559401]
[1758565898186,1.80413712,220.93,220.91,49.33559401]
[1758565898408,1.80413712,220.93,220.92,0.66]
[1758565898586,1.80413712,220.93,220.91,48.67559401]
[1758565898783,1.80413712,220.93,220.91,14.25559401]
[1758565898989,1.80413712,220.92,220.91,14.25559401]
[1758565899192,1.80413712,220.92,220.91,13.59559401]
[1758565900890,6.33066255,220.92,220.91,13.59559401]
[1758565902293,6.33066255,220.92,220.91,14.25559401]
[1758565903288,6.33066255,220.92,220.91,13.59559401]
[1758565904025,14.21721103,220.92,220.91,13.59559401]
[1758565904313,25.53352462,220.92,220.85,48.65559401]
[1758565904498,1.80413712,220.86,220.85,14.25559401]
[1758565905212,4.52652543,220.92,220.85,27.56349239]
[1758565905402,1.80413712,220.89,220.87,13.59559401]
[1758565905709,1.80413712,220.89,220.88,14.25559401]
[1758565906326,6.33127732,220.89,220.88,13.59559401]
[1758565906625,1.80413712,220.89,220.88,13.59559401]
[1758565906786,1.80413712,220.89,220.88,14.25559401]
[1758565907689,12.18568256,220.94,220.89,13.59559401]
[1758565907690,0.2,220.94,220.89,13.59559401]
[1758565907901,1.80413712,220.93,220.91,13.59559401]
[1758565908107,1.80413712,220.92,220.91,48.69559401]
[1758565908317,1.80413712,220.92,220.91,49.35559401]
[1758565910195,1.80413712,220.92,220.91,48.69559401]
[1758565910400,7.00066255,220.92,220.86,0.66]
[1758565910609,5.19652543,220.92,220.87,13.59559401]
[1758565910919,4.52652543,220.92,220.88,0.66]
[1758565911804,1.80413712,220.89,220.88,14.25559401]
[1758565914526,4.52652849,220.92,220.88,14.25559401]
[1758565914711,1.80413712,220.9,220.89,14.25559401]
[1758565915320,1.80413712,220.9,220.86,35.1]
[1758565915616,1.80413712,220.87,220.86,48.67559401]
[1758565916096,1.80413712,220.87,220.86,49.33559401]
[1758565916934,6.33168726,220.87,220.86,13.59559401]
[1758565917114,6.33168726,220.87,220.84,35.1]
[1758565917320,1.80413712,220.85,220.84,48.69559401]
[1758565918131,6.99209727,220.85,220.84,13.59559401]
[1758565918517,6.33209727,220.85,220.84,13.59559401]
[1758565919435,6.33209727,220.85,220.75,4.52983824]
[1758565919436,44.31199765,220.85,220.75,4.52983824]
[1758565919622,134.2,220.84,220.78,13.59559401]
[1758565919823,134.2,220.84,220.8,13.59559401]
[1758565920125,134.2,220.84,220.8,14.30559401]
[1758565920341,4.52837023,220.83,220.8,14.30559401]
[1758565920633,134.2,220.84,220.82,13.59559401]
[1758565920852,134.2,220.84,220.83,49.40559401]
[1758565921134,136.00413712,220.84,220.83,49.40559401]
[1758565921324,140.5323023,220.84,220.83,49.40559401]
[1758565921521,136.00413712,220.84,220.83,48.69559401]
[1758565921724,134.2,220.84,220.83,49.40559401]
[1758565921931,4.52773428,220.87,220.84,13.59559401]
[1758565922129,1.80413712,220.85,220.84,14.30559401]
[1758565922622,6.33209727,220.85,220.84,13.59559401]
[1758565922945,18.31199765,220.85,220.81,13.59559401]
[1758565923129,1.80413712,220.82,220.81,13.59559401]
[1758565923831,28.46413712,220.82,220.77,13.59559401]
[1758565924039,1.80413712,220.78,220.77,13.59559401]
[1758565924335,6.33353289,220.78,220.77,13.59559401]
[1758565924723,6.33353289,220.78,220.75,13.59559401]
[1758565924924,1.80413712,220.76,220.75,27.48075894]
[1758565925123,1.80413712,220.76,220.75,48.71559401]
[1758565926330,1.80413712,220.79,220.76,13.59559401]
[1758565926644,11.32011397,220.85,220.77,0.71]
[1758565926844,1.80413712,220.83,220.79,13.59559401]
[1758565927034,1.80413712,220.82,220.8,0.71]
[1758565927236,1.80413712,220.81,220.8,14.30559401]
[1758565928144,1.80413712,220.82,220.8,14.30559401]
[1758565928952,1.80413712,220.85,220.81,49.46559401]
[1758565929131,1.80413712,220.85,220.83,13.59559401]
[1758565929534,1.80413712,220.84,220.83,13.59559401]
[1758565929732,15.84714297,220.86,220.83,13.59559401]
[1758565930052,1.80413712,220.84,220.83,13.59559401]
[1758565930736,18.31271526,220.84,220.73,2.36633427]
[1758565930937,0.66,220.83,220.76,48.73559401]
[1758565931143,1.80413712,220.78,220.77,14.30559401]
[1758565931344,1.80413712,220.79,220.78,13.59559401]
[1758565931532,1.80413712,220.8,220.78,14.30559401]
[1758565931733,1.80413712,220.8,220.79,49.46559401]
[1758565932858,6.33291758,220.81,220.79,49.46559401]
[1758565933355,1.80413712,220.8,220.79,49.46559401]
[1758565933545,136.00413712,220.8,220.79,13.59559401]
[1758565933750,136.00413712,220.8,220.79,48.73559401]
[1758565934540,136.00413712,220.8,220.79,49.44559401]
[1758565937846,140.53312262,220.8,220.79,48.73559401]
[1758565938241,136.00413712,220.8,220.79,48.73559401]
[1758565938469,134.2,220.8,220.79,49.45559401]
[1758565938646,134.2,220.8,220.79,53.98478464]
[1758565939170,1.80413712,220.86,220.8,13.59559401]
[1758565939363,1.80413712,220.86,220.82,13.59559401]
[1758565939669,1.80413712,220.86,220.84,13.59559401]
[1758565939845,4.52652311,220.93,220.86,13.59559401]
[1758565940162,27.80413712,220.93,220.88,13.59559401]
[1758565940345,27.80413712,220.93,220.87,35.86]
[1758565940346,2.00413712,220.94,220.9,13.59559401]
[1758565940546,2.00413712,220.94,220.92,13.59559401]
[1758565940862,2.00413712,220.94,220.93,35.16]
[1758565941254,0.2,220.94,220.93,49.47559401]
[1758565942369,2.00413712,220.94,220.93,48.75559401]
[1758565942677,2.00413712,220.94,220.93,48.73559401]
[1758565942844,6.5302528,220.94,220.93,13.59559401]
[1758565943049,6.5302528,220.94,220.93,48.73559401]
[1758565943357,2.00413712,220.94,220.93,49.45559401]
[1758565943567,2.00413712,220.94,220.93,48.73559401]
[1758565943759,6.5302528,220.94,220.93,48.73559401]
[1758565943962,2.00413712,220.94,220.93,48.73559401]
[1758565944358,2.00413712,220.94,220.93,49.45559401]
[1758565944664,0.2,220.94,220.93,49.45559401]
[1758565945051,0.2,220.94,220.93,53.98191456]
[1758565948454,0.2,220.96,220.94,13.59559401]
[1758565948656,0.2,220.96,220.95,55.08564196]
[1758565948855,0.2,220.96,220.95,56.24823304]
[1758565949775,0.2,220.96,220.95,14.30559401]
[1758565950073,0.2,220.96,220.95,49.46559401]
[1758565950453,0.2,220.96,220.95,49.48559401]
[1758565952285,2.00413712,220.96,220.95,13.59559401]
[1758565952479,7.23984313,220.96,220.95,13.59559401]
[1758565954077,6.52984313,220.96,220.95,13.59559401]
[1758565954982,7.23984313,220.96,220.95,13.59559401]
[1758565956561,8.25499635,220.96,220.95,13.59559401]
[1758565956763,7.54499635,220.96,220.95,13.59559401]
[1758565957466,0.2,220.96,220.95,14.30559401]
[1758565957687,3.01929034,220.96,220.95,14.30559401]
[1758565957876,0.2,220.96,220.95,14.30559401]
[1758565958078,0.2,220.96,220.95,18.83150484]
[1758565958387,0.2,220.96,220.95,21.65079518]
[1758565960689,0.2,220.96,220.95,18.83150484]
[1758565960872,0.2,220.96,220.95,53.99150484]
[1758565961893,3.01929034,220.96,220.95,13.59559401]
[1758565962067,3.01929034,220.96,220.95,48.75559401]
[1758565962993,0.2,220.96,220.95,48.75559401]
[1758565963191,0.2,220.96,220.95,49.46559401]
[1758565964278,0.2,220.96,220.95,48.75559401]
[1758565967500,3.01929034,220.96,220.95,48.75559401]
[1758565967873,7.54499635,220.96,220.95,48.75559401]
[1758565968093,3.01929034,220.96,220.95,48.75559401]
[1758565968496,0.2,220.96,220.95,49.46559401]
[1758565969897,0.2,220.96,220.95,48.75559401]
[1758565970402,0.2,220.96,220.95,49.46559401]
[1758565970710,0.2,220.96,220.95,53.99150484]
[1758565973400,0.2,220.96,220.95,56.81079518]
[1758565973592,0.2,220.96,220.95,53.99150484]
[1758565975803,0.2,220.96,220.95,14.30559401]
[1758565976010,0.2,220.96,220.95,49.42559401]
[1758565976808,0.2,220.96,220.95,14.30559401]
[1758565977003,0.2,220.96,220.95,48.69559401]
[1758565978609,0.2,220.96,220.95,53.89150484]
[1758565980207,0.2,220.96,220.95,53.22150484]
[1758565980387,0.2,220.96,220.95,53.89150484]
[1758565981126,0.2,220.96,220.95,56.71079518]
[1758565982809,0.2,220.96,220.95,56.69079518]
[1758565983010,0.2,220.96,220.95,18.79150484]
[1758565983310,0.2,220.96,220.95,53.87150484]
[1758565983521,0.2,220.96,220.95,56.69079518]
[1758565985394,0.2,221.0,220.98,13.59559401]
[1758565985708,0.2,221.0,220.99,48.67559401]
[1758565985904,0.2,221.0,220.99,52.16488435]
[1758565987616,0.2,221.0,220.99,56.68997598]
[1758565988898,0.2,221.0,220.99,53.87068564]
[1758565990220,0.2,221.0,220.99,56.68997598]
[1758565990417,0.2,221.02,221.0,13.59559401]
[1758565990603,0.2,221.02,221.01,51.47488435]
[1758565990800,0.2,221.02,221.01,52.14488435]
[1758565991615,0.2,221.02,221.01,48.65559401]
[1758565991797,0.2,221.02,221.01,27.33944306]
[1758565991997,0.2,221.02,221.01,62.39944306]
[1758565992918,0.2,221.02,221.01,66.9241252]
[1758565993339,3.71929034,221.02,221.01,27.33944306]
[1758565993643,8.24376776,221.02,221.01,62.39944306]
[1758565994015,0.2,221.02,221.01,62.39944306]
[1758565994436,0.2,221.02,221.01,66.9241252]
[1758565995021,0.2,221.02,221.01,67.5941252]
[1758565995217,0.2,221.02,221.01,70.41341554]
[1758565997411,0.2,221.02,221.01,35.35341554]
[1758565997619,0.2,221.02,221.01,70.41341554]
[1758565998513,0.2,221.02,221.01,31.8641252]
[1758565998731,0.2,221.02,221.01,67.6441252]
[1758565999047,0.2,221.02,221.01,70.46341554]
[1758565999419,0.2,221.02,221.01,35.40341554]
[1758565999631,0.2,221.02,221.01,70.46341554]
[1758566000913,0.2,221.02,221.01,31.8641252]
[1758566001134,0.87,221.02,221.01,62.39944306]
[1758566001319,0.2,221.02,221.01,62.39944306]
[1758566001524,0.2,221.02,221.01,66.9241252]
[1758566002735,0.2,221.02,221.01,62.39944306]
[1758566003743,0.87,221.02,221.01,27.33944306]
[1758566004042,3.68929034,221.02,221.01,62.39944306]
[1758566005238,0.2,221.02,221.01,62.39944306]
[1758566005635,0.2,221.02,221.01,66.9241252]
[1758566007025,0.2,221.02,221.01,67.6441252]
[1758566007750,0.2,221.02,221.01,70.46341554]
[1758566010557,0.2,221.02,221.01,69.74341554]
[1758566010935,0.2,221.02,221.01,70.44341554]
[1758566017061,0.2,221.02,221.01,31.8641252]
[1758566017266,0.2,221.02,221.01,70.42341554]
[1758566018767,0.2,221.02,221.01,69.40583669]
[1758566020166,0.2,221.02,221.01,66.9041252]
[1758566020544,0.2,221.02,221.01,67.6041252]
[1758566021065,0.2,221.02,221.01,68.70583669]
[1758566021360,0.91,221.02,221.01,27.33944306]
[1758566021570,7.23618891,221.02,221.01,62.37944306]
[1758566021866,2.71171149,221.02,221.01,62.37944306]
[1758566023075,0.2,221.02,221.01,62.37944306]
[1758566023969,0.91,221.02,221.01,62.37944306]
[1758566024153,2.71171149,221.02,221.01,62.37944306]
[1758566024748,0.91,221.02,221.01,62.37944306]
[1758566025069,0.2,221.02,221.01,67.6041252]
[1758566026072,0.2,221.02,221.01,69.40583669]
[1758566029663,0.2,221.02,221.01,68.70583669]
[1758566029862,0.2,221.02,221.01,66.9041252]
[1758566030076,0.2,221.02,221.01,67.6041252]
[1758566031765,0.2,221.02,221.01,66.9041252]
[1758566031970,0.2,221.02,221.01,69.40583669]
[1758566032676,0.2,221.02,221.01,67.6041252]
[1758566033057,0.2,221.02,221.01,31.8641252]
[1758566033262,2.71171149,221.02,221.01,27.33944306]
[1758566033568,2.71171149,221.02,221.01,62.37944306]
[1758566034385,0.91,221.02,221.01,62.37944306]
[1758566039063,2.00171149,221.02,221.01,62.37944306]
[1758566040185,0.2,221.02,221.01,62.37944306]
[1758566040591,0.2,221.02,221.01,69.39583669]
[1758566040769,0.2,221.06,221.02,13.59559401]
[1758566040976,0.2,221.06,221.05,15.3973055]
[1758566041281,0.2,221.06,221.05,50.4373055]
[1758566041485,0.2,221.06,221.05,51.1273055]
[1758566041694,0.2,221.06,221.05,55.65116887]
[1758566043971,0.2,221.06,221.05,20.61116887]
[1758566044187,0.2,221.06,221.05,55.65116887]
[1758566046095,0.2,221.06,221.05,53.84945738]
[1758566046670,0.2,221.06,221.05,55.65116887]
[1758566047685,0.2,221.06,221.05,53.84945738]
[1758566050291,0.2,221.06,221.05,55.65116887]
[1758566050695,0.2,221.06,221.05,56.1035552]
[1758566050909,0.2,221.06,221.05,54.30184371]
[1758566051087,0.2,221.06,221.05,55.65116887]
[1758566051905,0.2,221.06,221.05,53.15945738]
[1758566052596,0.2,221.06,221.05,18.11945738]
[1758566052786,0.2,221.06,221.05,53.15945738]
[1758566052992,0.2,221.06,221.05,55.65116887]
[1758566054979,0.2,221.06,221.05,18.11945738]
[1758566055178,0.86,221.06,221.05,48.63559401]
[1758566055397,0.2,221.06,221.05,48.63559401]
[1758566055604,0.2,221.06,221.05,55.65116887]
[1758566058309,0.66,221.14,221.06,13.59559401]
[1758566058487,134.86,221.15,221.06,16.0873055]